bitfinex-derivatives/quotes_SOLF0:USTF0_20240926
["timestamp","ask_amount","ask_price","bid_price","bid_amount"]
[1727378602974,9.82,156.43,156.41,3.1961]
[1727378605874,13.0157,156.44,156.42,3.196]
[1727378606168,11.1012,156.46,156.41,9.82]
[1727378606374,1.2812,156.46,156.42,9.82]
[1727378606583,9.82,156.48,156.42,9.82]
[1727378606978,13.0149,156.48,156.45,3.1953]
[1727378607452,12.4131,156.52,156.47,9.82]
[1727378607820,3.1943,156.51,156.47,13.0149]
[1727378609077,3.1943,156.51,156.46,9.82]
[1727378609279,3.1944,156.5,156.46,9.82]
[1727378610882,3.1944,156.5,156.47,3.1948]
[1727378611276,13.0142,156.51,156.48,3.1947]
[1727378611471,3.1942,156.51,156.48,3.1947]
[1727378614680,3.1944,156.5,156.48,3.1947]
[1727378614882,9.82,156.51,156.48,3.1947]
[1727378615080,13.0142,156.51,156.48,3.1947]
[1727378615297,12.4131,156.52,156.47,9.82]
[1727378615679,9.82,156.51,156.47,9.82]
[1727378616576,9.82,156.51,156.48,3.1947]
[1727378616981,9.82,156.51,156.47,9.82]
[1727378617477,5.7872,156.52,156.47,9.82]
[1727378617678,15.6072,156.52,156.47,9.82]
[1727378617879,15.6072,156.52,156.49,3.1945]
[1727378619191,3.1942,156.51,156.48,3.1947]
[1727378621783,9.82,156.51,156.47,3.1949]
[1727378622019,9.82,156.48,156.42,59.23548172]
[1727378622200,9.82,156.48,156.44,9.82]
[1727378622590,9.82,156.48,156.46,3.1951]
[1727378625892,2.5931,156.52,156.46,9.82]
[1727378626193,2.5931,156.52,156.47,9.82]
[1727378626381,12.4131,156.52,156.49,3.1945]
[1727378626587,12.4131,156.52,156.48,9.82]
[1727378626789,15.6071,156.52,156.49,3.1944]
[1727378627392,3.1942,156.51,156.49,3.1944]
[1727378627714,13.0142,156.51,156.49,3.1944]
[1727378628695,13.0142,156.51,156.48,3.1947]
[1727378630492,13.0142,156.51,156.49,3.1945]
[1727378637900,13.0145,156.5,156.48,3.1947]
[1727378638124,9.82,156.48,156.42,59.23548172]
[1727378638317,9.82,156.45,156.42,59.23548172]
[1727378638508,9.82,156.45,156.43,3.1957]
[1727378641599,9.82,156.45,156.42,62.43138172]
[1727378642202,9.82,156.45,156.43,3.1958]
[1727378643903,3.195,156.47,156.43,13.0158]
[1727378644205,13.0149,156.48,156.43,9.82]
[1727378644508,13.0149,156.48,156.42,59.23548172]
[1727378644509,13.0149,156.48,156.44,9.82]
[1727378645400,9.82,156.48,156.44,9.82]
[1727378645613,9.82,156.49,156.44,9.82]
[1727378645806,9.82,156.51,156.46,9.82]
[1727378646117,2.5931,156.52,156.49,3.1945]
[1727378646118,12.4131,156.52,156.49,3.1945]
[1727378646509,11.0949,156.52,156.49,3.1945]
[1727378647509,14.2889,156.52,156.5,3.1943]
[1727378647708,1.2749,156.52,156.5,3.1943]
[1727378648101,3.1937,156.54,156.51,3.1942]
[1727378648705,3.1938,156.53,156.5,3.1943]
[1727378649502,13.0138,156.53,156.5,3.1943]
[1727378657803,13.014,156.52,156.5,3.1943]
[1727378660113,13.014,156.52,156.49,3.1945]
[1727378660312,3.1943,156.51,156.49,3.1945]
[1727378663016,13.0141,156.52,156.49,3.1945]
[1727378664644,3.1941,156.52,156.49,3.1945]
[1727378664830,3.1941,156.52,156.5,3.1943]
[1727378665026,3.1938,156.53,156.5,3.1943]
[1727378665325,1.3065,156.57,156.54,3.1935]
[1727378665589,1.3065,156.57,156.43,1.291]
[1727378665944,1.3065,156.57,156.53,9.82]
[1727378665953,4.4996,156.57,156.54,3.1935]
[1727378666325,14.3196,156.57,156.54,3.1935]
[1727378666725,4.4996,156.57,156.54,3.1935]
[1727378666934,1.3065,156.57,156.53,9.82]
[1727378668001,4.4996,156.57,156.54,3.1935]
[1727378670438,9.82,156.56,156.51,3.194]
[1727378670738,9.82,156.56,156.51,9.82]
[1727378671235,3.1934,156.55,156.52,3.1938]
[1727378671737,13.0136,156.54,156.49,11.1116]
[1727378671937,9.82,156.54,156.49,11.1116]
[1727378672438,13.0136,156.54,156.51,3.194]
[1727378673225,3.1937,156.53,156.51,3.194]
[1727378673433,3.1937,156.53,156.5,3.1943]
[1727378673641,9.82,156.53,156.5,3.1943]
[1727378674540,13.0138,156.53,156.5,3.1943]
[1727378675335,3.1941,156.52,156.49,3.1945]
[1727378679746,3.1941,156.52,156.5,3.1943]
[1727378679946,13.0138,156.53,156.5,3.1943]
[1727378680352,3.1938,156.53,156.51,3.1941]
[1727378681440,3.1938,156.53,156.5,3.1943]
[1727378682441,3.194,156.52,156.5,3.1943]
[1727378683049,3.1938,156.53,156.5,3.1943]
[1727378685049,3.1938,156.53,156.51,3.1941]
[1727378685750,3.194,156.52,156.48,9.82]
[1727378686050,9.82,156.53,156.48,9.82]
[1727378686553,9.82,156.51,156.45,9.82]
[1727378686854,3.1947,156.49,156.45,9.82]
[1727378687811,3.1947,156.49,156.46,3.195]
[1727378687835,9.82,156.51,156.45,9.82]
[1727378687836,3.1944,156.5,156.45,9.82]
[1727378688136,3.1944,156.5,156.47,9.82]
[1727378688743,3.1944,156.5,156.47,13.0149]
[1727378688946,3.1944,156.5,156.47,3.1949]
[1727378696456,3.1944,156.5,156.48,3.1947]
[1727378697861,3.1944,156.5,156.47,3.1949]
[1727378699862,2.5988,156.57,156.49,9.82]
[1727378700165,2.5988,156.57,156.54,9.82]
[1727378700166,1.3065,156.57,156.54,9.82]
[1727378700662,9.82,156.56,156.51,9.82]
[1727378701160,9.82,156.56,156.51,3.1942]
[1727378701561,1.3065,156.57,156.53,9.82]
[1727378702059,4.4996,156.57,156.53,13.0136]
[1727378704058,4.4996,156.57,156.54,3.1935]
[1727378707369,3.1931,156.56,156.54,3.1935]
[1727378707568,9.82,156.56,156.53,3.1937]
[1727378707887,3.1934,156.55,156.51,9.82]
[1727378708167,3.1934,156.55,156.53,3.1937]
[1727378708363,3.1934,156.55,156.53,13.0137]
[1727378708562,3.1932,156.56,156.53,13.0137]
[1727378714475,3.1934,156.55,156.53,9.82]
[1727378714888,9.82,156.54,156.49,9.82]
[1727378715010,9.82,156.5,156.46,20.40865575]
[1727378715172,9.82,156.5,156.47,6.61818993]
[1727378715372,9.82,156.5,156.48,6.61818993]
[1727378715568,9.82,156.5,156.46,9.82]
[1727378715773,9.82,156.5,156.47,6.61861702]
[1727378715971,13.0144,156.5,156.47,9.81351702]
[1727378716166,13.0144,156.5,156.47,3.1949]
[1727378716363,9.82,156.5,156.47,3.1949]
[1727378716669,9.82,156.5,156.46,3.1951]
[1727378716869,9.82,156.49,156.44,9.82]
[1727378717072,3.1948,156.48,156.45,17.21190987]
[1727378717270,13.0148,156.48,156.46,6.61996533]
[1727378717474,9.82,156.47,156.44,3.1955]
[1727378717667,9.82,156.47,156.42,145.71548172]
[1727378718312,9.82,156.47,156.43,6.62348638]
[1727378718630,9.82,156.46,156.43,9.81918638]
[1727378718688,9.82,156.46,156.43,16.44169615]
[1727378718865,9.82,156.45,156.43,6.62348638]
[1727378719881,13.0153,156.46,156.43,9.81928638]
[1727378720972,13.0153,156.46,156.44,3.1956]
[1727378721182,13.0153,156.46,156.43,6.62348638]
[1727378721183,9.82,156.47,156.43,6.62348638]
[1727378721672,9.82,156.47,156.44,3.1955]
[1727378722342,13.0151,156.47,156.44,3.1955]
[1727378725078,9.82,156.45,156.41,9.82]
[1727378725500,9.82,156.42,156.38,9.82]
[1727378725676,1.367,156.51,156.38,9.82]
[1727378725941,9.82,156.42,156.38,9.82]
[1727378726173,9.82,156.39,156.36,10.57996328]
[1727378726288,9.82,156.38,156.33,9.82]
[1727378726789,5.86404746,156.41,156.29,2.7494]
[1727378726790,9.82,156.37,156.32,9.82]
[1727378727089,5.86404746,156.41,156.31,3.1981]
[1727378727090,13.0176,156.35,156.31,3.1981]
[1727378727335,1.3376,156.4,156.3,9.82]
[1727378727483,9.82,156.36,156.32,9.82]
[1727378728280,13.0173,156.36,156.33,3.1977]
[1727378729685,13.0175,156.35,156.32,3.198]
[1727378729911,9.82,156.35,156.32,3.198]
[1727378730388,13.0175,156.35,156.32,3.198]
[1727378731390,13.0175,156.35,156.32,13.018]
[1727378732386,13.0175,156.35,156.32,3.198]
[1727378736894,1.3376,156.4,156.33,9.82]
[1727378737083,1.3376,156.4,156.35,9.82]
[1727378737589,3.1969,156.38,156.35,13.0173]
[1727378737998,3.1971,156.37,156.35,9.82]
[1727378738193,1.3376,156.4,156.35,9.82]
[1727378738486,11.1576,156.4,156.35,9.82]
[1727378738987,3.1972,156.37,156.35,9.82]
[1727378740082,3.1972,156.37,156.34,3.1976]
[1727378741384,13.0172,156.37,156.34,3.1976]
[1727378741501,9.82,156.36,156.29,1.3636]
[1727378741680,9.82,156.36,156.3,9.82]
[1727378742483,9.82,156.35,156.3,9.82]
[1727378742894,9.82,156.36,156.31,9.82]
[1727378743290,3.1975,156.35,156.32,3.1979]
[1727378743991,2.6215,156.41,156.34,9.82]
[1727378744207,9.82,156.43,156.39,9.82]
[1727378744402,9.82,156.45,156.4,9.82]
[1727378744594,3.196,156.43,156.4,9.82]
[1727378746198,3.196,156.43,156.4,13.0164]
[1727378746507,3.1956,156.44,156.41,9.82]
[1727378747901,3.1956,156.44,156.41,13.0162]
[1727378749204,3.1956,156.44,156.4,13.0163]
[1727378749514,3.1958,156.43,156.4,13.0163]
[1727378751097,3.1961,156.42,156.36,4.44328909]
[1727378751308,9.82,156.43,156.38,9.82]
[1727378751808,3.1962,156.42,156.38,13.0166]
[1727378752008,3.1962,156.42,156.39,9.82]
[1727378752320,5.8872,156.49,156.46,3.1951]
[1727378752533,2.6925,156.49,156.46,9.82]
[1727378753327,1.3753,156.49,156.46,9.82]
[1727378753357,9.82,156.52,156.47,9.82]
[1727378753580,9.82,156.52,156.48,9.82]
[1727378754416,1.3473,156.53,156.46,15.35]
[1727378754812,1.3473,156.53,156.48,15.35]
[1727378755014,1.3473,156.53,156.46,15.35]
[1727378755915,3.1942,156.51,156.48,3.1947]
[1727378758305,1.3473,156.53,156.46,15.35]
[1727378758516,3.1944,156.5,156.47,3.1949]
[1727378759134,3.25129899,156.52,156.45,3.1953]
[1727378759715,3.1948,156.49,156.45,3.1953]
[1727378760525,3.1948,156.49,156.44,1.2832]
[1727378760526,15.35,156.5,156.44,3.1955]
[1727378761118,3.1951,156.47,156.44,3.1955]
[1727378762120,3.1949,156.48,156.45,3.1953]
[1727378763426,2.674,156.53,156.46,15.35]
[1727378763727,1.3473,156.53,156.48,15.35]
[1727378763914,4.5411,156.53,156.51,3.1941]
[1727378764316,1.3473,156.53,156.51,3.1941]
[1727378765224,4.5411,156.53,156.5,3.1943]
[1727378767130,3.1936,156.54,156.51,3.1941]
[1727378768918,3.1938,156.53,156.51,3.1941]
[1727378769428,3.1936,156.54,156.51,3.1941]
[1727378770322,3.1938,156.53,156.51,3.1941]
[1727378770532,3.1938,156.53,156.5,3.1943]
[1727378771828,3.1938,156.53,156.48,15.35]
[1727378774122,3.1938,156.53,156.5,3.1942]
[1727378774524,3.1934,156.55,156.5,15.35]
[1727378774766,1.3369,156.57,156.52,15.35]
[1727378775035,1.3369,156.57,156.53,3.1936]
[1727378775036,3.1932,156.56,156.53,3.1936]
[1727378775429,1.3369,156.57,156.53,3.1936]
[1727378775629,3.1932,156.56,156.54,3.1935]
[1727378775828,1.3369,156.57,156.52,15.35]
[1727378776036,15.35,156.61,156.52,15.35]
[1727378776226,3.193,156.57,156.52,15.35]
[1727378777231,3.193,156.57,156.54,3.1934]
[1727378779528,3.1931,156.56,156.52,15.35]
[1727378779731,15.35,156.61,156.52,15.35]
[1727378780334,15.35,156.61,156.52,18.5438]
[1727378780936,3.1935,156.55,156.52,18.5438]
[1727378781336,15.35,156.61,156.52,15.35]
[1727378781532,16.634,156.6,156.51,3.194]
[1727378781734,3.1939,156.53,156.51,3.194]
[1727378781934,15.35,156.57,156.48,15.35]
[1727378782134,1.3481,156.56,156.48,15.35]
[1727378782329,3.1941,156.52,156.49,3.1944]
[1727378782532,15.35,156.55,156.45,1.2749]
[1727378782727,1.2681,156.55,156.48,15.35]
[1727378782929,3.194,156.52,156.48,15.35]
[1727378783929,3.1939,156.53,156.49,3.1944]
[1727378785033,3.1939,156.53,156.5,3.1943]
[1727378785260,3.194,156.52,156.5,3.1943]
[1727378785532,1.2681,156.55,156.46,15.35]
[1727378785733,1.2681,156.55,156.47,3.1949]
[1727378785734,3.1945,156.5,156.47,3.1949]
[1727378785938,3.1945,156.5,156.46,15.35]
[1727378786236,3.1945,156.5,156.47,3.1949]
[1727378786436,3.1946,156.49,156.47,3.1949]
[1727378786735,1.2681,156.55,156.47,3.1949]
[1727378786925,1.2681,156.55,156.48,3.1947]
[1727378787133,3.1943,156.51,156.48,3.1947]
[1727378787830,3.1944,156.5,156.48,3.1947]
[1727378788096,3.1944,156.5,156.47,3.1949]
[1727378788358,15.35,156.54,156.45,1.2749]
[1727378788481,3.1947,156.49,156.45,1.2749]
[1727378788641,18.54390311,156.54,156.45,1.2749]
[1727378788839,1.2852,156.53,156.44,15.35]
[1727378789137,15.35,156.5,156.43,76.66]
[1727378789337,1.3249,156.49,156.43,79.8557]
[1727378789539,3.1953,156.46,156.43,79.8557]
[1727378789840,1.3249,156.49,156.43,3.1957]
[1727378790337,1.3249,156.49,156.41,1.3405]
[1727378791241,3.1953,156.46,156.43,3.1956]
[1727378791563,1.3249,156.49,156.43,3.1956]
[1727378792841,3.1954,156.45,156.43,3.1956]
[1727378793738,1.3249,156.49,156.41,1.3405]
[1727378793938,1.3249,156.49,156.37,1.36]
[1727378793939,2.5829,156.49,156.37,16.71]
[1727378794240,15.35,156.46,156.37,16.71]
[1727378794844,3.1958,156.43,156.4,3.1964]
[1727378803745,3.1958,156.43,156.41,3.1962]
[1727378805548,3.1958,156.43,156.4,13.0163]
[1727378806047,13.0158,156.43,156.4,3.1963]
[1727378806449,3.1958,156.43,156.4,13.0163]
[1727378808146,3.1958,156.43,156.41,9.82]
[1727378808346,3.1958,156.43,156.4,13.0163]
[1727378808623,3.1958,156.43,156.35,86.15606099]
[1727378808624,9.82,156.41,156.35,82.96499961]
[1727378808848,2.5829,156.49,156.35,82.96499961]
[1727378808849,9.82,156.39,156.35,82.96499961]
[1727378809058,3.1968,156.38,156.36,3.1972]
[1727378809250,13.0168,156.38,156.36,3.1972]
[1727378810143,13.0168,156.38,156.35,82.96499961]
[1727378810348,1.2708,156.41,156.3,11.1639]
[1727378810556,9.82,156.36,156.3,9.82]
[1727378811246,13.0173,156.36,156.3,9.82]
[1727378811453,3.1973,156.36,156.32,9.82]
[1727378812349,3.1973,156.36,156.29,16.6363]
[1727378812851,3.1973,156.36,156.33,3.1978]
[1727378813268,1.2708,156.41,156.29,1.2763]
[1727378813594,15.36,156.35,156.3,3.1983]
[1727378813744,3.198,156.33,156.3,3.1983]
[1727378813948,3.198,156.33,156.31,3.1982]
[1727378814648,3.198,156.33,156.3,3.1984]
[1727378814841,15.36,156.35,156.3,3.1984]
[1727378815044,1.3437,156.4,156.28,79.8988]
[1727378815267,15.36,156.33,156.28,76.7]
[1727378815446,3.1984,156.31,156.25,3.18714126]
[1727378815646,3.1984,156.31,156.28,3.1987]
[1727378817151,3.1981,156.32,156.25,3.27670364]
[1727378817344,3.1981,156.32,156.23,15.36]
[1727378817950,3.1981,156.32,156.23,18.57419281]
[1727378818142,3.1981,156.32,156.23,25.15755512]
[1727378818753,3.1981,156.32,156.28,3.1987]
[1727378819957,3.1983,156.31,156.28,3.1987]
[1727378820153,15.36,156.33,156.29,3.1986]
[1727378821060,3.1981,156.32,156.3,3.1984]
[1727378821364,3.1981,156.32,156.23,18.57419281]
[1727378821659,3.1979,156.33,156.25,15.36]
[1727378821974,1.3146,156.34,156.25,15.36]
[1727378822281,15.36,156.35,156.27,15.36]
[1727378822282,3.1975,156.35,156.27,15.36]
[1727378822574,3.1975,156.35,156.28,1.2821]
[1727378822583,15.36,156.37,156.28,1.2821]
[1727378822584,15.36,156.37,156.28,4.41931078]
[1727378822755,3.1977,156.34,156.31,3.1981]
[1727378823548,3.1978,156.33,156.31,3.1981]
[1727378823952,15.36,156.37,156.31,3.1981]
[1727378824857,3.1977,156.34,156.31,3.1981]
[1727378825658,3.1979,156.33,156.3,3.1984]
[1727378830554,1.355,156.39,156.29,15.36]
[1727378830754,15.36,156.38,156.29,15.36]
[1727378831356,1.355,156.39,156.31,15.36]
[1727378832189,4.5517,156.39,156.36,3.197]
[1727378832563,15.36,156.4,156.31,15.36]
[1727378832763,16.6673,156.4,156.31,15.36]
[1727378833763,3.1969,156.38,156.35,3.1974]
[1727378834464,15.36,156.38,156.29,15.36]
[1727378835254,3.1976,156.35,156.29,15.36]
[1727378835453,15.36,156.36,156.28,2.6209]
[1727378835758,3.1976,156.34,156.31,3.1981]
[1727378836465,3.1976,156.34,156.32,3.198]
[1727378838265,9.82,156.33,156.27,3.26260964]
[1727378838568,17.9795,156.4,156.23,86.56]
[1727378838569,9.82,156.29,156.23,86.56]
[1727378839148,13.0188,156.29,156.24,3.18374032]
[1727378839367,9.82,156.29,156.24,3.18374032]
[1727378840157,3.1987,156.29,156.26,3.1992]
[1727378840762,3.1986,156.3,156.27,3.199]
[1727378840962,15.35,156.31,156.24,3.18374032]
[1727378841965,3.1985,156.3,156.27,3.199]
[1727378843367,3.1983,156.31,156.28,3.1988]
[1727378843566,1.3284,156.32,156.24,3.18374032]
[1727378843782,1.3284,156.32,156.24,15.35]
[1727378843981,1.3284,156.32,156.24,18.5105262]
[1727378844770,4.5265,156.32,156.29,3.1985]
[1727378845274,15.35,156.31,156.24,3.1605262]
[1727378845467,1.3284,156.32,156.22,98.37890505]
[1727378845665,1.3284,156.32,156.22,101.52663172]
[1727378845866,1.3284,156.32,156.24,15.35]
[1727378846267,4.5266,156.32,156.24,15.35]
[1727378846667,3.1982,156.31,156.28,3.1987]
[1727378850875,3.1986,156.3,156.27,3.199]
[1727378851482,16.6784,156.32,156.27,3.199]
[1727378851877,3.1986,156.3,156.27,3.199]
[1727378852179,15.35,156.31,156.28,3.1988]
[1727378852381,3.1983,156.31,156.24,15.35]
[1727378852774,3.1983,156.31,156.28,3.1988]
[1727378853978,3.1983,156.31,156.29,3.1986]
[1727378854282,3.1985,156.3,156.24,15.35]
[1727378854906,3.1985,156.3,156.28,3.1988]
[1727378855174,15.35,156.29,156.23,6.58732517]
[1727378855481,15.35,156.29,156.22,86.17663172]
[1727378855679,3.1989,156.28,156.22,86.17663172]
[1727378857780,3.1989,156.28,156.25,3.1993]
[1727378858880,3.1992,156.27,156.22,86.17663172]
[1727378860486,3.1992,156.27,156.24,3.1995]
[1727378862300,9.83,156.26,156.24,3.1995]
[1727378862785,3.1992,156.27,156.23,9.83]
[1727378862786,9.83,156.27,156.23,9.83]
[1727378863686,9.83,156.27,156.25,3.1993]
[1727378865565,13.0291,156.27,156.24,3.1996]
[1727378865688,9.83,156.26,156.24,3.1996]
[1727378867427,9.83,156.26,156.25,3.1995]
[1727378868502,9.83,156.26,156.23,6.60286226]
[1727378868685,9.83,156.25,156.23,6.60286226]
[1727378868908,9.83,156.25,156.22,86.17663172]
[1727378869502,9.83,156.25,156.23,3.1999]
[1727378871602,9.83,156.24,156.22,86.22890505]
[1727378872192,13.0298,156.24,156.22,83.02890505]
[1727378872402,9.83,156.24,156.22,83.02890505]
[1727378872770,1.3284,156.32,156.17,1.31]
[1727378872771,13.0299,156.23,156.17,1.31]
[1727378872929,9.83,156.19,156.12,3.22102329]
[1727378873085,9.83,156.19,156.14,9.83]
[1727378873287,3.2009,156.19,156.15,3.2014]
[1727378873616,3.2009,156.19,156.12,83.07878471]
[1727378873617,9.83,156.16,156.12,83.07878471]
[1727378873893,9.83,156.16,156.15,3.2015]
[1727378874189,9.83,156.18,156.14,9.83]
[1727378874592,9.83,156.18,156.15,3.2014]
[1727378874896,9.83,156.18,156.12,92.90878471]
[1727378875488,9.83,156.17,156.12,92.90878471]
[1727378875819,9.83,156.17,156.14,3.2016]
[1727378876285,3.9685,156.25,156.12,92.90878471]
[1727378876494,9.83,156.18,156.12,92.90878471]
[1727378876888,9.83,156.18,156.12,83.07878471]
[1727378877132,9.83,156.18,156.15,3.2014]
[1727378877292,9.83,156.18,156.13,9.83]
[1727378877789,9.83,156.18,156.15,3.2014]
[1727378878591,9.83,156.18,156.16,3.2013]
[1727378878893,9.83,156.18,156.13,9.83]
[1727378879792,9.83,156.18,156.16,3.2012]
[1727378880695,3.2006,156.2,156.17,3.2011]
[1727378881000,9.83,156.19,156.17,3.2011]
[1727378881704,3.2006,156.2,156.17,3.2011]
[1727378881994,9.83,156.19,156.17,3.2011]
[1727378882191,3.2002,156.22,156.17,9.83]
[1727378882491,9.83,156.2,156.15,9.83]
[1727378882954,9.83,156.2,156.17,3.2009]
[1727378883790,9.83,156.2,156.18,3.2009]
[1727378884998,9.83,156.19,156.17,3.201]
[1727378888696,3.2005,156.2,156.17,3.201]
[1727378888891,9.83,156.19,156.17,3.201]
[1727378889907,9.83,156.18,156.17,3.201]
[1727378892101,9.83,156.18,156.16,3.2012]
[1727378892297,9.83,156.18,156.13,9.83]
[1727378892496,9.83,156.17,156.12,92.90878471]
[1727378892897,9.83,156.17,156.16,3.2013]
[1727378896092,9.83,156.17,156.12,92.90878471]
[1727378896306,3.9685,156.25,156.12,83.07878471]
[1727378896307,9.83,156.13,156.12,83.07878471]
[1727378896521,9.83,156.13,156.08,1.3042]
[1727378897006,9.83,156.13,156.11,3.2022]
[1727378897395,1.3656,156.16,156.06,83.2266]
[1727378897396,9.83,156.12,156.06,76.82]
[1727378897641,9.83,156.1,156.06,76.82]
[1727378897902,9.83,156.1,156.06,80.07444588]
[1727378898896,9.83,156.1,156.06,76.82]
[1727378899103,9.83,156.1,156.06,80.09640712]
[1727378899403,9.83,156.1,156.08,3.2028]
[1727378899993,9.83,156.11,156.09,3.2027]
[1727378900400,1.2704,156.15,156.09,9.83]
[1727378900595,9.83,156.13,156.1,3.2025]
[1727378900803,9.83,156.12,156.1,3.12992576]
[1727378902802,9.80196954,156.12,156.1,3.12992576]
[1727378904733,3.2018,156.14,156.11,3.2023]
[1727378905034,13.0316,156.15,156.1,9.83]
[1727378905400,13.0316,156.15,156.12,3.202]
[1727378905712,9.83,156.15,156.1,9.83]
[1727378906101,9.83,156.15,156.11,3.2021]
[1727378906302,13.0316,156.15,156.11,3.2021]
[1727378906727,13.0316,156.15,156.12,3.2021]
[1727378906914,13.0318,156.14,156.08,9.83]
[1727378907207,9.83,156.13,156.1,3.2024]
[1727378907544,9.83,156.11,156.1,3.2024]
[1727378908312,9.83,156.12,156.1,3.2024]
[1727378910100,9.83,156.11,156.09,3.2026]
[1727378910303,9.83,156.11,156.06,9.83]
[1727378910903,9.83,156.11,156.09,3.2026]
[1727378912101,9.83,156.1,156.09,3.2026]
[1727378912317,2.7164,156.16,156.07,3.203]
[1727378912506,9.83,156.1,156.07,3.203]
[1727378912721,9.83,156.08,156.06,3.2033]
[1727378913057,9.83,156.08,156.03,4.42439573]
[1727378913097,1.3415,156.1,156.05,9.83]
[1727378913303,9.83,156.09,156.07,3.203]
[1727378913505,1.3415,156.1,156.06,9.83]
[1727378914205,11.1715,156.1,156.06,9.83]
[1727378914405,11.1715,156.1,156.07,3.203]
[1727378915514,14.3742,156.1,156.06,3.2033]
[1727378915701,9.83,156.08,156.06,3.2033]
[1727378916095,9.83,156.08,156.05,3.2035]
[1727378916355,9.83,156.06,156.02,9.83]
[1727378916775,9.83,156.07,156.04,3.2036]
[1727378917601,9.83,156.07,156.05,3.2035]
[1727378918305,9.83,156.06,156.03,3.2038]
[1727378919206,9.83,156.04,156.02,3.2041]
[1727378919402,9.83,156.04,155.99,9.83]
[1727378919613,3.203,156.08,156.02,9.83]
[1727378919824,9.83,156.06,156.04,3.2037]
[1727378920116,2.6823,156.09,156.04,3.2037]
[1727378920205,9.83,156.06,156.02,9.83]
[1727378920410,2.6823,156.09,156.02,9.83]
[1727378920612,9.83,156.06,156.02,9.83]
[1727378921006,9.83,156.05,156.04,3.2036]
[1727378921504,3.2032,156.07,156.04,3.2036]
[1727378921908,13.0332,156.07,156.04,3.2036]
[1727378923642,3.2032,156.07,156.05,3.2036]
[1727378923806,13.0332,156.07,156.05,3.2036]
[1727378927855,3.2032,156.07,156.05,3.2036]
[1727378928014,13.0332,156.07,156.05,3.2036]
[1727378929218,13.0332,156.07,156.04,3.2037]
[1727378929810,13.0332,156.07,156.05,3.2035]
[1727378932413,13.033,156.08,156.06,3.2033]
[1727378932615,11.1838,156.09,156.05,9.83]
[1727378933222,14.3867,156.09,156.06,3.2033]
[1727378935917,1.3415,156.1,156.07,9.83]
[1727378936329,1.3415,156.1,156.08,3.2028]
[1727378936528,1.314,156.13,156.08,9.83]
[1727378936721,11.144,156.13,156.08,9.83]
[1727378937020,1.3258,156.16,156.09,9.83]
[1727378937225,9.83,156.15,156.09,9.83]
[1727378937823,3.2019,156.14,156.11,3.2022]
[1727378938922,3.2016,156.15,156.11,9.83]
[1727378939122,1.3258,156.16,156.12,9.83]
[1727378939626,1.3258,156.16,156.13,3.2018]
[1727378940842,3.2016,156.15,156.13,3.2018]
[1727378941027,9.83,156.14,156.05,1.2876]